bitfinex/quotes_BTCUSD_20250812
["timestamp","ask_amount","ask_price","bid_price","bid_amount"]
[1755014841631,0.1,119920.0,119910.0,1.15706134]
[1755014841891,0.1,119920.0,119910.0,1.16106134]
[1755014842567,0.1,119920.0,119910.0,1.16406134]
[1755014844429,0.1,119920.0,119910.0,1.13946134]
[1755014845285,0.1,119920.0,119910.0,0.45194303]
[1755014845530,0.1,119920.0,119910.0,1.13922134]
[1755014845975,0.1,119920.0,119910.0,0.59350303]
[1755014846209,0.1,119920.0,119910.0,1.13922134]
[1755014846638,0.1,119920.0,119910.0,1.13914134]
[1755014848071,0.1,119920.0,119910.0,1.12165232]
[1755014848450,0.26677785,119920.0,119910.0,0.43449401]
[1755014848663,0.26677785,119920.0,119910.0,0.57581401]
[1755014848871,0.1,119920.0,119910.0,0.57486401]
[1755014849087,0.1,119920.0,119910.0,1.12353232]
[1755014852649,0.1,119920.0,119910.0,0.57781401]
[1755014852871,0.1,119920.0,119910.0,1.12353232]
[1755014853093,0.1,119920.0,119910.0,0.57781401]
[1755014853314,0.1,119920.0,119910.0,1.12353232]
[1755014855919,0.1,119920.0,119910.0,1.14098134]
[1755014856141,0.1,119920.0,119910.0,1.36598134]
[1755014856369,0.17512681,119960.0,119940.0,0.16673713]
[1755014856595,0.57722681,119960.0,119950.0,0.22985165]
[1755014856824,0.58018681,119960.0,119950.0,0.08272325]
[1755014857049,0.58018681,119960.0,119950.0,0.24854425]
[1755014857274,0.58018681,119960.0,119950.0,0.22352325]
[1755014857729,0.58018681,119960.0,119950.0,0.22357209]
[1755014858226,0.58018681,119960.0,119950.0,0.22657209]
[1755014859129,0.58018681,119960.0,119950.0,0.22757209]
[1755014859346,0.58018681,119960.0,119950.0,0.08677209]
[1755014859799,0.58018681,119960.0,119950.0,0.22757209]
[1755014862414,0.58018681,119960.0,119950.0,0.22657209]
[1755014863208,0.57722681,119960.0,119950.0,0.22657209]
[1755014863404,0.57722681,119960.0,119950.0,0.22357209]
[1755014864373,0.57722681,119960.0,119950.0,0.22565209]
[1755014864812,0.57722681,119960.0,119950.0,0.22357209]
[1755014865448,0.58018681,119960.0,119950.0,0.22357209]
[1755014868189,0.58018681,119960.0,119950.0,0.08277209]
[1755014868347,0.58018681,119960.0,119950.0,0.22353209]
[1755014869310,0.58018681,119960.0,119950.0,0.08277209]
[1755014869552,0.58018681,119960.0,119950.0,0.22353209]
[1755014875873,0.58018681,119960.0,119950.0,0.22349209]
[1755014876743,0.58018681,119960.0,119950.0,0.08277209]
[1755014876963,0.58018681,119960.0,119950.0,0.22349209]
[1755014877225,0.58018681,119960.0,119950.0,0.08277209]
[1755014877452,1.12590512,119960.0,119950.0,0.22349209]
[1755014877673,1.12590512,119960.0,119950.0,0.08277209]
[1755014877674,0.72590512,119960.0,119950.0,0.08277209]
[1755014877895,0.72590512,119960.0,119950.0,1e-08]
[1755014878131,0.83196955,119960.0,119950.0,0.14072001]
[1755014878595,0.16677785,119920.0,119910.0,0.22823]
[1755014878822,0.16677785,119920.0,119910.0,0.45379507]
[1755014880012,0.16677785,119920.0,119910.0,0.31311507]
[1755014880226,0.16677785,119920.0,119910.0,0.45379507]
[1755014880449,0.16677785,119920.0,119910.0,0.45579507]
[1755014881104,0.16677785,119920.0,119910.0,0.45779507]
[1755014881325,0.16887785,119920.0,119910.0,0.11183507]
[1755014881543,0.71950552,119920.0,119910.0,0.08680507]
[1755014881771,0.17183785,119920.0,119910.0,0.22748507]
[1755014882259,0.17183785,119920.0,119910.0,0.08480507]
[1755014882461,0.17183785,119920.0,119910.0,0.22548507]
[1755014882670,0.17183785,119920.0,119910.0,0.22648507]
[1755014882900,0.17183785,119920.0,119910.0,0.22448507]
[1755014883609,0.71950552,119920.0,119910.0,0.08480507]
[1755014883828,0.71950552,119920.0,119910.0,0.22548507]
[1755014884288,0.17183785,119920.0,119910.0,0.22548507]
[1755014884791,0.17183785,119920.0,119910.0,0.22448507]
[1755014885679,0.17183785,119920.0,119910.0,0.22348507]
[1755014885864,0.17183785,119920.0,119910.0,0.22448507]
[1755014886328,0.17183785,119920.0,119910.0,0.22348507]
[1755014886749,0.17183785,119920.0,119910.0,0.08280507]
[1755014886954,0.17183785,119920.0,119910.0,0.22348507]
[1755014890915,0.16887785,119920.0,119910.0,0.22348507]
[1755014891756,0.16677785,119920.0,119910.0,0.22871507]
[1755014892417,0.16677785,119920.0,119910.0,0.22559507]
[1755014892600,0.16887785,119920.0,119910.0,0.22344507]
[1755014893015,0.16887785,119920.0,119910.0,0.22444507]
[1755014893222,0.16887785,119920.0,119910.0,0.22544507]
[1755014893618,0.16887785,119920.0,119910.0,0.22755507]
[1755014893825,0.16887785,119920.0,119910.0,0.22655507]
[1755014894108,0.16887785,119920.0,119910.0,0.22555507]
[1755014894461,0.16887785,119920.0,119910.0,0.22344507]
[1755014894868,0.16887785,119920.0,119910.0,0.08280507]
[1755014895046,0.17206785,119920.0,119910.0,0.22344507]
[1755014895373,0.71973552,119920.0,119910.0,0.22344507]
[1755014896418,0.17206785,119920.0,119910.0,0.22344507]
[1755014897418,0.16887785,119920.0,119910.0,0.22555507]
[1755014897828,0.16677785,119920.0,119910.0,0.22867507]
[1755014899454,0.16677785,119920.0,119910.0,0.22863507]
[1755014899957,0.16677785,119920.0,119910.0,0.22963507]
[1755014900159,0.16677785,119920.0,119910.0,0.23063507]
[1755014902516,0.71973552,119920.0,119910.0,0.22536507]
[1755014902706,0.733119,119920.0,119910.0,0.22536507]
[1755014903081,0.17206785,119920.0,119910.0,0.22536507]
[1755014903303,0.733119,119920.0,119910.0,0.22436507]
[1755014904760,0.733119,119920.0,119910.0,0.22336507]
[1755014906801,0.17206785,119920.0,119910.0,0.22336507]
[1755014907025,0.16677785,119920.0,119910.0,0.22859507]
[1755014908413,0.729929,119920.0,119910.0,0.08491507]
[1755014908644,0.733119,119920.0,119910.0,0.22332507]
[1755014909324,0.16887785,119920.0,119910.0,0.22332507]
[1755014909551,0.729929,119920.0,119910.0,0.22543507]
[1755014909777,0.16677785,119920.0,119910.0,0.22543507]
[1755014910013,0.16677785,119920.0,119910.0,0.22855507]
[1755014911149,0.16677785,119920.0,119910.0,0.78960622]
[1755014911421,0.16677785,119920.0,119910.0,0.22855507]
[1755014912495,0.16677785,119920.0,119910.0,0.22955507]
[1755014912732,0.16677785,119920.0,119910.0,0.23055507]
[1755014912941,0.16677785,119920.0,119910.0,0.09003507]
[1755014913152,0.56677785,119920.0,119910.0,0.23051507]
[1755014914013,1.129929,119920.0,119910.0,0.08480507]
[1755014914238,0.733119,119920.0,119910.0,0.22524507]
[1755014914927,1.29417015,119920.0,119910.0,0.22524507]
[1755014915141,1.29417015,119920.0,119910.0,0.22424507]
[1755014915406,0.16680567,119900.0,119890.0,0.125035]
[1755014915633,0.73294682,119900.0,119890.0,0.18284555]
[1755014915861,0.16680567,119900.0,119890.0,0.32534555]
[1755014916077,0.16680567,119900.0,119890.0,0.8893567]
[1755014916266,0.16680567,119900.0,119890.0,0.32830555]
[1755014917200,0.16880567,119900.0,119890.0,0.32830555]
[1755014918267,0.73182682,119900.0,119890.0,0.32324555]
[1755014918522,0.72982682,119900.0,119890.0,0.32324555]
[1755014919631,0.72982682,119900.0,119890.0,0.32320555]
[1755014920273,0.16877567,119900.0,119890.0,0.32530555]
[1755014923678,0.72982682,119900.0,119890.0,0.32530555]
[1755014925045,0.16877567,119900.0,119890.0,0.32530555]
[1755014925256,0.16680567,119900.0,119890.0,0.32826555]
[1755014925904,0.16877567,119900.0,119890.0,0.32320555]
[1755014926134,0.80055722,119900.0,119890.0,0.18284555]
[1755014926341,0.80055722,119900.0,119890.0,0.32312555]
[1755014927196,0.73294682,119900.0,119890.0,0.32312555]
[1755014928055,0.73294682,119900.0,119890.0,0.18284555]
[1755014928261,0.73294682,119900.0,119890.0,0.32312555]
[1755014928476,0.75039584,119900.0,119890.0,0.2404023]
[1755014928697,0.1842686,119890.0,119880.0,0.1]
[1755014928915,0.74728975,119890.0,119880.0,0.24040359]
[1755014929589,0.75040975,119890.0,119880.0,0.24040359]
[1755014929802,0.1893586,119890.0,119880.0,0.24040359]
[1755014929999,0.75040975,119890.0,119880.0,0.24040359]
[1755014930190,0.75040975,119890.0,119880.0,1e-08]
[1755014930709,0.1893586,119890.0,119880.0,1e-08]
[1755014931129,0.16684741,119870.0,119860.0,0.20016]
[1755014931337,0.17193741,119870.0,119860.0,0.42361176]
[1755014931992,0.73298856,119870.0,119860.0,0.28337176]
[1755014932200,0.73298856,119870.0,119860.0,0.42361176]
[1755014933874,0.73498856,119870.0,119860.0,0.42361176]
[1755014934587,0.75243758,119870.0,119860.0,0.34088851]
[1755014935021,0.75243758,119870.0,119860.0,0.14068851]
[1755014940457,0.74931758,119870.0,119860.0,0.14278851]
[1755014940680,0.16884741,119870.0,119860.0,0.78952291]
[1755014941149,0.16884741,119870.0,119860.0,0.22847176]
[1755014941429,0.16884741,119870.0,119860.0,0.08827176]
[1755014941616,0.16684741,119870.0,119860.0,0.22843176]
[1755014942513,0.16684741,119870.0,119860.0,0.22943176]
[1755014943365,0.16684741,119870.0,119860.0,0.23043176]
[1755014944211,0.16684741,119870.0,119860.0,0.09027176]
[1755014944427,0.72986856,119870.0,119860.0,0.08731176]
[1755014944642,0.72986856,119870.0,119860.0,0.22743176]
[1755014945270,0.16881741,119870.0,119860.0,0.22543176]
[1755014945474,0.16684741,119870.0,119860.0,0.22860176]
[1755014945685,0.16684741,119870.0,119860.0,0.23060176]
[1755014945902,0.72789856,119870.0,119860.0,0.23060176]
[1755014946149,0.72789856,119870.0,119860.0,0.22960176]
[1755014946398,0.72984856,119870.0,119860.0,0.08521176]
[1755014946645,0.73296856,119870.0,119860.0,0.08621176]
[1755014946852,0.73296856,119870.0,119860.0,0.22629176]
[1755014947940,0.73296856,119870.0,119860.0,0.22529176]
[1755014948394,0.73296856,119870.0,119860.0,0.22329176]
[1755014949071,0.73496856,119870.0,119860.0,0.22329176]
[1755014949525,0.73496856,119870.0,119860.0,0.08321176]
[1755014949751,0.73496856,119870.0,119860.0,0.22329176]
[1755014950022,0.73496856,119870.0,119860.0,0.22325176]
[1755014950234,0.17391741,119870.0,119860.0,0.22325176]
[1755014950472,0.73496856,119870.0,119860.0,0.22325176]
[1755014951120,0.17391741,119870.0,119860.0,0.22325176]
[1755014951342,0.73496856,119870.0,119860.0,0.22325176]
[1755014953197,0.19136643,119870.0,119860.0,0.14052851]
[1755014953405,0.75241758,119870.0,119860.0,0.00048851]
[1755014953627,0.81263353,119870.0,119860.0,0.00048851]
[1755014953882,0.75241758,119870.0,119860.0,0.14048851]
[1755014954323,0.74929758,119870.0,119860.0,0.14048851]
[1755014954538,0.18824643,119870.0,119860.0,0.14262851]
[1755014954746,0.18629643,119870.0,119860.0,0.14579851]
[1755014955156,0.74929758,119870.0,119860.0,0.14262851]
[1755014956437,0.18824643,119870.0,119860.0,0.14262851]
[1755014957095,0.74929758,119870.0,119860.0,0.14262851]
[1755014957304,0.18824643,119870.0,119860.0,0.14262851]
[1755014957579,0.74929758,119870.0,119860.0,0.14262851]
[1755014959521,0.18824643,119870.0,119860.0,0.14262851]
[1755014959765,0.74929758,119870.0,119860.0,0.14262851]
[1755014959984,0.18824643,119870.0,119860.0,0.14262851]
[1755014960206,0.74929758,119870.0,119860.0,0.14262851]
[1755014963453,0.16884741,119870.0,119860.0,0.22852176]
[1755014965457,0.73184856,119870.0,119860.0,0.22852176]
[1755014965870,0.16884741,119870.0,119860.0,0.22852176]
[1755014966095,0.16884741,119870.0,119860.0,0.78957291]
[1755014966304,0.16884741,119870.0,119860.0,0.22852176]
[1755014968388,0.16684741,119870.0,119860.0,0.22852176]
[1755014968597,0.16684741,119870.0,119860.0,0.25356476]
[1755014969019,0.16684741,119870.0,119860.0,0.22852176]
[1755014972773,0.16684741,119870.0,119860.0,0.78957291]
[1755014972986,0.16684741,119870.0,119860.0,0.98147624]
[1755014974299,0.16684741,119870.0,119860.0,0.25356376]
[1755014974998,0.16684741,119870.0,119860.0,0.42042509]
[1755014975436,0.16684594,119880.0,119860.0,0.42042509]
[1755014975437,0.16684594,119880.0,119860.0,0.98147624]
[1755014975662,0.16684594,119880.0,119870.0,0.08782884]
[1755014975893,0.16684594,119880.0,119870.0,0.08986884]
[1755014976088,0.16684594,119880.0,119870.0,0.25671625]
[1755014976308,0.16684594,119880.0,119870.0,0.81568181]
[1755014976557,0.17516055,119890.0,119880.0,0.1668335]
[1755014976789,0.17516055,119890.0,119880.0,0.9553479]
[1755014977226,0.16680567,119900.0,119890.0,0.16681958]
[1755014977455,0.16680567,119900.0,119890.0,0.25668807]
[1755014977680,0.16680567,119900.0,119890.0,0.08778325]
[1755014977939,0.16680567,119900.0,119890.0,0.11281725]
[1755014978589,0.16680567,119900.0,119890.0,0.84068798]
[1755014978965,0.16680567,119900.0,119890.0,0.6748684]
[1755014979183,0.16680567,119900.0,119890.0,0.11381725]
[1755014980352,0.16680567,119900.0,119890.0,0.11481725]
[1755014980718,0.16680567,119900.0,119890.0,0.25441725]
[1755014982205,0.16882567,119900.0,119890.0,0.25441725]
[1755014982954,0.16882567,119900.0,119890.0,0.11179725]
[1755014983176,0.17177567,119900.0,119890.0,0.22428325]
[1755014983425,0.72987682,119900.0,119890.0,0.22428325]
[1755014983638,0.73282682,119900.0,119890.0,0.22428325]
[1755014984117,0.17177567,119900.0,119890.0,0.22328325]
[1755014984335,0.73282682,119900.0,119890.0,0.22428325]
[1755014985016,0.18922469,119900.0,119890.0,0.001]
[1755014985231,0.16684741,119870.0,119860.0,0.00350851]
[1755014985462,0.16684741,119870.0,119860.0,0.25283176]
[1755014986297,0.16684741,119870.0,119860.0,0.11331176]
[1755014986509,0.16684741,119870.0,119860.0,0.25479176]
[1755014986719,0.16684741,119870.0,119860.0,0.81584291]
[1755014987723,0.1668335,119880.0,119860.0,0.98270424]
[1755014987940,0.16684741,119870.0,119860.0,0.33790984]
[1755014988117,0.16684741,119870.0,119860.0,0.31286984]
[1755014988367,0.16684741,119870.0,119860.0,0.3439703]
[1755014988589,0.16684741,119870.0,119860.0,0.3449903]
[1755014989025,0.16684741,119870.0,119860.0,0.3429903]
[1755014989241,0.16684741,119870.0,119860.0,0.90604145]
[1755014989455,0.16684741,119870.0,119860.0,0.9887647]
[1755014989909,0.17518456,119890.0,119860.0,0.99910776]
[1755014990133,0.4,119890.0,119880.0,1.37165052]
[1755014990354,0.4,119890.0,119880.0,0.95207937]
[1755014990567,0.4,119890.0,119880.0,0.95509937]
[1755014990788,0.17514375,119910.0,119890.0,0.16681958]
[1755014991001,0.17514375,119910.0,119900.0,0.22628832]
[1755014991241,0.17514375,119910.0,119900.0,0.22722325]
[1755014992340,0.17514375,119910.0,119900.0,0.22736928]
[1755014992555,0.17514375,119910.0,119900.0,0.39417495]
[1755014993663,0.27511674,119920.0,119910.0,0.16679176]
[1755014993664,0.26677785,119920.0,119910.0,0.16679176]
[1755014993879,0.26677785,119920.0,119910.0,0.81771105]
[1755014994085,0.26677785,119920.0,119910.0,0.81562616]
[1755014995145,0.26777785,119920.0,119910.0,0.81562616]
[1755014995361,0.26979785,119920.0,119910.0,0.08476325]
[1755014995570,0.27274785,119920.0,119910.0,0.08272325]
[1755014997115,0.833799,119920.0,119910.0,0.22204325]
[1755014997989,0.27274785,119920.0,119910.0,0.22204325]
[1755014998250,0.833799,119920.0,119910.0,0.22204325]
[1755014998472,0.833799,119920.0,119910.0,0.22200325]
[1755014998913,0.27274785,119920.0,119910.0,0.22200325]
[1755014999135,0.101,119920.0,119910.0,0.95490616]
[1755014999358,0.26777785,119920.0,119910.0,0.76504578]
[1755014999579,0.26777785,119920.0,119910.0,0.93183754]
[1755015000010,0.26677785,119920.0,119910.0,0.93183754]
[1755015000247,0.26677785,119920.0,119910.0,0.93283754]
[1755015000464,0.1,119920.0,119910.0,1.84404869]
[1755015000668,0.1,119920.0,119910.0,1.28199754]
[1755015000872,0.1,119920.0,119910.0,1.30702354]
[1755015001090,0.1,119920.0,119910.0,0.74697239]
[1755015001301,0.1,119920.0,119910.0,1.30802354]
[1755015002010,0.1,119920.0,119910.0,1.30902354]
[1755015002249,0.1,119920.0,119910.0,1.89498469]
[1755015002494,0.1,119920.0,119910.0,1.92318511]
[1755015002745,0.1,119920.0,119910.0,1.33893354]
[1755015002955,0.1,119920.0,119910.0,1.32923101]
[1755015004519,0.1,119920.0,119910.0,0.78188239]
[1755015004719,0.1,119920.0,119910.0,1.32923101]
[1755015005184,0.1,119920.0,119910.0,1.16404101]
[1755015005395,0.1,119920.0,119910.0,0.75589239]
[1755015005611,0.26677785,119920.0,119910.0,0.75589239]
[1755015005825,0.26677785,119920.0,119910.0,1.30324101]
[1755015006046,0.26677785,119920.0,119910.0,1.29924101]
[1755015006264,0.26677785,119920.0,119910.0,1.29920101]
[1755015006487,0.26677785,119920.0,119910.0,0.74985239]
[1755015006707,0.1,119920.0,119910.0,0.75385239]
[1755015006938,0.1,119920.0,119910.0,1.29720101]
[1755015007133,0.1,119920.0,119910.0,1.30020101]
[1755015008004,0.1,119920.0,119910.0,1.29620101]
[1755015008217,0.1,119920.0,119910.0,1.30020101]
[1755015008664,0.1,119920.0,119910.0,1.29620101]
[1755015008884,0.26677785,119920.0,119910.0,1.29620101]
[1755015009100,0.26677785,119920.0,119910.0,0.74885239]
[1755015009315,0.26677785,119920.0,119910.0,1.29820101]
[1755015009531,0.26677785,119920.0,119910.0,0.75085239]
[1755015009744,0.1,119920.0,119910.0,0.75085239]
[1755015009954,0.1,119920.0,119910.0,1.29820101]
[1755015010590,0.26677785,119920.0,119910.0,1.29820101]
[1755015011245,0.1,119920.0,119910.0,1.29820101]
[1755015011692,0.26677785,119920.0,119910.0,0.75085239]
[1755015012296,0.26884785,119920.0,119910.0,0.74783239]
[1755015012542,0.26677785,119920.0,119910.0,0.58399063]
[1755015012762,0.26884785,119920.0,119910.0,0.58092063]
[1755015012973,0.26884785,119920.0,119910.0,0.74771239]
[1755015014023,0.1,119920.0,119910.0,1.29805101]
[1755015014461,0.26677785,119920.0,119910.0,1.29805101]
[1755015014698,0.1,119920.0,119910.0,1.29805101]
[1755015014907,0.26677785,119920.0,119910.0,1.29805101]
[1755015015332,0.1,119920.0,119910.0,1.29805101]
[1755015016005,0.1,119920.0,119910.0,0.75070239]
[1755015016224,0.1,119920.0,119910.0,1.29805101]
[1755015017296,0.26677785,119920.0,119910.0,1.29805101]
[1755015017642,0.1,119920.0,119910.0,1.29805101]
[1755015018706,0.26677785,119920.0,119910.0,0.75070239]
[1755015018917,0.1,119920.0,119910.0,1.29805101]
[1755015019932,0.26677785,119920.0,119910.0,1.29805101]
[1755015020919,0.1,119920.0,119910.0,1.29805101]
[1755015021662,0.1,119920.0,119910.0,0.75070239]
[1755015021871,0.1,119920.0,119910.0,1.29805101]
[1755015022723,0.1,119920.0,119910.0,0.75070239]
[1755015022949,0.26677785,119920.0,119910.0,1.29805101]
[1755015024846,0.26677785,119920.0,119910.0,1.31133148]
[1755015025092,0.1,119920.0,119910.0,1.31133148]
[1755015027830,0.1,119920.0,119910.0,1.87196057]
[1755015029227,0.1,119920.0,119910.0,2.95120557]
[1755015029695,0.1,119920.0,119910.0,2.99365459]
[1755015029968,0.1,119920.0,119910.0,3.07176501]
[1755015030177,0.1,119920.0,119910.0,3.08845501]
[1755015030385,0.1,119920.0,119910.0,1.96719683]
[1755015030586,0.1,119920.0,119910.0,3.08645501]
[1755015031002,0.1,119920.0,119910.0,3.09045501]
[1755015031219,0.1,119920.0,119910.0,3.06225459]
[1755015031427,0.1,119920.0,119910.0,3.05525459]
[1755015031876,0.1,119920.0,119910.0,3.06425459]
[1755015032089,0.1,119920.0,119910.0,3.06025459]
[1755015032844,0.1,119920.0,119910.0,3.06525459]
[1755015033052,0.1,119920.0,119910.0,3.32885459]
[1755015033476,0.07218283,119920.0,119910.0,3.32885459]
[1755015036901,0.06203211,119920.0,119910.0,3.32885459]
[1755015037114,0.01934414,119920.0,119910.0,3.32885459]
[1755015038397,0.00305,119960.0,119950.0,0.31673614]
[1755015038610,0.00197,119960.0,119950.0,0.53821939]
[1755015038837,0.00197,119960.0,119950.0,1.10092848]
[1755015039258,0.00197,119960.0,119950.0,1.12594748]
[1755015039688,0.00201887,119960.0,119950.0,1.12594748]
[1755015040319,0.00201887,119960.0,119950.0,1.12694748]
[1755015042334,4.887e-05,119960.0,119950.0,1.12694748]
[1755015042481,4.887e-05,119960.0,119950.0,1.13009748]
[1755015043101,4.887e-05,119960.0,119950.0,1.15534554]
[1755015043998,0.16874111,119960.0,119950.0,0.45072645]
[1755015044175,0.17179111,119960.0,119950.0,1.15003554]
[1755015044616,0.57179111,119960.0,119950.0,0.23372325]
[1755015044819,0.57179111,119960.0,119950.0,0.37236325]
[1755015045644,0.57179111,119960.0,119950.0,1.09972848]
[1755015045856,0.40201887,119960.0,119950.0,1.09972848]
[1755015046397,0.57179111,119960.0,119950.0,1.09972848]
[1755015046809,0.57179111,119960.0,119950.0,0.37236325]
[1755015047018,0.57179111,119960.0,119950.0,1.09972848]
[1755015047271,0.40506887,119960.0,119950.0,1.09972848]
[1755015047484,0.17179111,119960.0,119950.0,1.09972848]
[1755015047690,0.17179111,119960.0,119950.0,1.12480143]
[1755015047926,0.17179111,119960.0,119950.0,0.56417234]
[1755015048132,0.17179111,119960.0,119950.0,0.3974362]
[1755015048335,0.17179111,119960.0,119950.0,0.95806529]
[1755015048760,0.17179111,119960.0,119950.0,0.96451422]
[1755015049051,0.17179111,119960.0,119950.0,0.40388513]
[1755015049611,0.17179111,119960.0,119950.0,1.13125036]
[1755015049997,0.17179111,119960.0,119950.0,0.96451422]
[1755015050991,0.17179111,119960.0,119950.0,0.40388513]
[1755015051257,0.17179111,119960.0,119950.0,0.96451422]
[1755015051466,0.57179111,119960.0,119950.0,1.13125036]
[1755015052379,0.57179111,119960.0,119950.0,0.96451422]
[1755015052682,0.57179111,119960.0,119950.0,1.12480143]
[1755015053362,0.57179111,119960.0,119950.0,1.14982143]
[1755015053583,0.57179111,119960.0,119950.0,0.4224562]
[1755015053826,0.57179111,119960.0,119950.0,0.95801234]
[1755015054512,4.887e-05,119960.0,119950.0,1.12997848]
[1755015055620,0.16677111,119960.0,119950.0,1.12997848]
[1755015055826,0.17179111,119960.0,119950.0,0.39722325]
[1755015056723,0.17179111,119960.0,119950.0,0.56395939]
[1755015056940,0.17179111,119960.0,119950.0,1.12458848]
[1755015057171,0.16874111,119960.0,119950.0,1.32462848]
[1755015057385,0.17179111,119960.0,119950.0,1.15789234]
[1755015058406,0.57179111,119960.0,119950.0,1.15789234]
[1755015058813,0.57179111,119960.0,119950.0,1.32462848]
[1755015059026,0.57179111,119960.0,119950.0,0.81937234]
[1755015059231,0.57179111,119960.0,119950.0,0.95781234]
[1755015059439,0.57179111,119960.0,119950.0,0.39718325]
[1755015059651,0.57179111,119960.0,119950.0,1.12454848]
[1755015060058,0.57179111,119960.0,119950.0,0.95781234]
[1755015060513,0.57179111,119960.0,119950.0,0.39718325]
[1755015060939,0.57179111,119960.0,119950.0,0.95781234]
[1755015061868,0.57179111,119960.0,119950.0,0.95777234]
[1755015062560,1.1324202,119960.0,119950.0,0.10874325]
[1755015062804,0.7324202,119960.0,119950.0,0.10874325]
[1755015063024,0.7324202,119960.0,119950.0,0.24714325]
[1755015063279,0.7324202,119960.0,119950.0,0.22212325]
[1755015063497,0.7560002,119960.0,119950.0,0.22212325]
[1755015063720,0.19537111,119960.0,119950.0,0.22112325]
[1755015063947,0.7560002,119960.0,119950.0,0.22212325]
[1755015064190,0.7570002,119960.0,119950.0,0.22212325]
[1755015064394,0.7570002,119960.0,119950.0,0.22112325]
[1755015064613,1.33507831,119960.0,119950.0,0.22108325]
[1755015064937,0.16675004,119940.0,119930.0,0.20004]
[1755015065140,0.72934913,119940.0,119930.0,0.42112325]
[1755015065348,0.73239913,119940.0,119930.0,0.42112325]
[1755015066856,0.17177004,119940.0,119930.0,0.42112325]
[1755015066994,0.73239913,119940.0,119930.0,0.42112325]
[1755015067203,0.73439913,119940.0,119930.0,0.42112325]
[1755015069995,0.73239913,119940.0,119930.0,0.42212325]
[1755015070221,0.73339913,119940.0,119930.0,0.42212325]
[1755015070653,0.73339913,119940.0,119930.0,0.28376325]
[1755015070880,0.75084815,119940.0,119930.0,0.33936]
[1755015072368,0.19021906,119940.0,119930.0,0.33936]
[1755015072593,0.75084815,119940.0,119930.0,0.33936]
[1755015072976,0.75084815,119940.0,119930.0,0.20104]
[1755015073152,0.75084815,119940.0,119930.0,0.33932]
[1755015074567,0.73339913,119940.0,119930.0,0.33932]
[1755015076829,0.17277004,119940.0,119930.0,0.33932]
[1755015077050,0.73339913,119940.0,119930.0,0.33932]
[1755015080205,0.17269004,119940.0,119930.0,0.33932]
[1755015080425,0.73331913,119940.0,119930.0,0.33932]
[1755015080638,0.73331913,119940.0,119930.0,0.20104]
[1755015080856,0.73331913,119940.0,119930.0,0.33924]
[1755015081274,0.17269004,119940.0,119930.0,0.33924]
[1755015081484,0.73331913,119940.0,119930.0,0.33924]
[1755015082105,0.17269004,119940.0,119930.0,0.33924]
[1755015082304,0.73331913,119940.0,119930.0,0.33924]
[1755015083352,0.73331913,119940.0,119930.0,0.001]
[1755015083556,0.73331913,119940.0,119930.0,0.1392]
[1755015084158,0.73331913,119940.0,119930.0,0.13916]
[1755015086173,0.73331913,119940.0,119930.0,0.13912]
[1755015087057,0.75076815,119940.0,119930.0,0.13912]
[1755015087744,0.77580115,119940.0,119900.0,0.20305]
[1755015087963,0.72742085,119910.0,119900.0,0.20305]
[1755015088178,0.72941085,119910.0,119900.0,0.34312]
[1755015088875,0.16878176,119910.0,119900.0,0.34312]
[1755015089095,0.16679176,119910.0,119900.0,0.42584325]
[1755015089318,0.72746969,119910.0,119900.0,0.42584325]
[1755015089983,0.1668406,119910.0,119900.0,0.42584325]
[1755015090202,0.72746969,119910.0,119900.0,0.42584325]
[1755015090435,0.72746969,119910.0,119900.0,0.42884325]
[1755015090662,0.1668406,119910.0,119900.0,0.42884325]
[1755015093093,0.1688306,119910.0,119900.0,0.42388325]
[1755015093345,0.73247969,119910.0,119900.0,0.42388325]
[1755015093786,0.72945969,119910.0,119900.0,0.42388325]
[1755015094006,0.72945969,119910.0,119900.0,0.42383325]
[1755015094258,0.72945969,119910.0,119900.0,0.42283325]
[1755015094474,0.73045969,119910.0,119900.0,0.42283325]
[1755015094691,0.73045969,119910.0,119900.0,0.42576325]
[1755015095396,0.73045969,119910.0,119900.0,0.42676325]
[1755015095626,0.1698306,119910.0,119900.0,0.42676325]
[1755015095849,0.73045969,119910.0,119900.0,0.42676325]
[1755015096278,0.1678406,119910.0,119900.0,0.42676325]
[1755015096512,0.72846969,119910.0,119900.0,0.42676325]
[1755015096747,0.73053969,119910.0,119900.0,0.28384325]
[1755015096969,0.73371969,119910.0,119900.0,0.42184325]
[1755015097439,0.73053969,119910.0,119900.0,0.42184325]
[1755015097662,0.73371969,119910.0,119900.0,0.42184325]
[1755015097893,0.75116871,119910.0,119900.0,0.33908]
[1755015099365,0.75116871,119910.0,119900.0,0.13896]
[1755015099597,0.16680567,119900.0,119890.0,0.1]
[1755015099821,0.16680567,119900.0,119890.0,0.23796]
[1755015099822,0.75013378,119900.0,119890.0,0.23796]
[1755015100267,0.18950469,119900.0,119890.0,0.23796]
[1755015100935,0.75013378,119900.0,119890.0,0.23796]
[1755015101155,0.75113378,119900.0,119890.0,0.23796]
[1755015101408,0.75013378,119900.0,119890.0,0.23796]
[1755015101645,0.1668335,119880.0,119870.0,0.003]
[1755015101892,0.72746259,119880.0,119870.0,0.22577325]
[1755015102772,0.1689035,119880.0,119870.0,0.22577325]
[1755015103014,0.72953259,119880.0,119870.0,0.22577325]
[1755015103249,0.72746259,119880.0,119870.0,0.22577325]
[1755015103482,0.72746259,119880.0,119870.0,0.22677325]
[1755015103707,0.72746259,119880.0,119870.0,0.22877325]
[1755015104361,0.72953259,119880.0,119870.0,0.22877325]
[1755015104574,0.72953259,119880.0,119870.0,0.08781325]
[1755015104808,1.3107907,119880.0,119870.0,0.003]
[1755015105028,1.3107907,119880.0,119870.0,1e-08]
[1755015105248,1.3107907,119880.0,119870.0,0.13792001]
[1755015105488,0.77520761,119880.0,119870.0,0.13792001]
[1755015105948,0.75016161,119880.0,119870.0,0.13792001]
[1755015106635,0.16686133,119860.0,119850.0,0.20352]
[1755015106853,0.16686133,119860.0,119850.0,0.42625325]
[1755015107743,0.16686133,119860.0,119850.0,0.28833325]
[1755015107960,0.16686133,119860.0,119850.0,0.42670176]
[1755015108640,0.16786133,119860.0,119850.0,0.42670176]
[1755015109315,0.72849042,119860.0,119850.0,0.42670176]
[1755015109576,0.16786133,119860.0,119850.0,0.42670176]
[1755015109830,0.72849042,119860.0,119850.0,0.42670176]
[1755015110320,0.72849042,119860.0,119850.0,0.42770176]
[1755015110560,0.16786133,119860.0,119850.0,0.42770176]
[1755015111673,0.73056042,119860.0,119850.0,0.42770176]
[1755015112741,0.18738035,119860.0,119850.0,0.42261176]
[1755015112974,0.75118944,119860.0,119850.0,0.28473176]
[1755015113180,0.75118944,119860.0,119850.0,0.42261176]
[1755015113406,0.19056035,119860.0,119850.0,0.42261176]
[1755015113631,0.75118944,119860.0,119850.0,0.42261176]
[1755015113811,0.19056035,119860.0,119850.0,0.42257176]